Cogmind - Beta 14 @@@ ROGUE MODE // 2024.09.12 @ 20:14:00 Player: CrossedViper Result: Destroyed by 4O-BRT(R) with Subdweller Laser Performance ------------- Evolutions (0) 0 Regions Visited (3) 600 Robots Destroyed (18) 90 Value Destroyed (481) 481 Prototype IDs (0) 0 Alien Tech Used (0) 0 Bonus (0) 0 TOTAL SCORE: 1171 Bonus ------- None Cogmind --------- Core Integrity 0/250 Matter 287/300 Energy 235/250 System Corruption 0% Temperature Cool (16) Movement Walking (120) Location -10/Subcaves Parts ------- > --- POWER (1) -------- Ion Engine > --- PROPULSION (2) --- Aluminum Leg Aluminum Leg > --- UTILITY (2) ------ Small Storage Unit Subdweller Optics > --- WEAPON (2) ------- Subdweller Laser Light Assault Rifle > --- INVENTORY (8) ---- Ion Engine Subdweller Laser Light Assault Rifle Subdweller Machine Gun Battle Cannon Battle Cannon Peak State ------------ > --- POWER ------------ Ion Engine > --- PROPULSION ------- Light Treads Light Treads > --- UTILITY ---------- Small Storage Unit Subdweller Optics > --- WEAPON ----------- Small Laser Subdweller Laser > --- INVENTORY -------- Ion Engine Aluminum Leg Aluminum Leg Light Assault Rifle Light Assault Rifle Subdweller Machine Gun Battle Cannon Battle Cannon [Rating: 10] Favorites ----------- Power Ion Engine Engine Ion Engine Propulsion Light Treads Treads Light Treads Leg Aluminum Leg Utility Small Storage Unit Device Subdweller Optics Storage Small Storage Unit Weapon Medium Laser Energy Gun Medium Laser Ballistic Gun Subdweller Machine Gun Ballistic Cannon Battle Cannon Build | -11 -10 -10 -10 ------- Run | Yrd Mat Min Sub Slots Evolved . | . . . . Power . | . . . . Propulsion . | . . . . Utility . | . . . . Weapon . | . . . . Parts Attached 17 | 6 . 1 10 Power 2 | 1 . 1 . Engine 2 | 1 . 1 . Core . | . . . . Reactor . | . . . . Propulsion 4 | 2 . . 2 Treads 2 | 2 . . . Leg 2 | . . . 2 Wheel . | . . . . Hover . | . . . . Flight . | . . . . Utility 3 | 1 . . 2 Device 2 | . . . 2 Storage 1 | 1 . . . Processor . | . . . . Hackware . | . . . . Protection . | . . . . Artifact . | . . . . Weapon 8 | 2 . . 6 Energy Gun 4 | 2 . . 2 Energy Cannon . | . . . . Ballistic Gun 3 | . . . 3 Ballistic Cannon 1 | . . . 1 Launcher . | . . . . Special Weapon . | . . . . Impact Weapon . | . . . . Slashing Weapon . | . . . . Piercing Weapon . | . . . . Special Melee Weapon . | . . . . Unidentified Prototypes . | . . . . Parts Lost 6 | . . 1 5 Power 1 | . . 1 . Propulsion 2 | . . . 2 Utility . | . . . . Weapon 3 | . . . 3 Highest Loss Streak 3 | . . 1 3 To Critical Strikes . | . . . . Average Slot Usage (%) 91 | . 85 84 97 Engine 13 | . 14 13 14 Treads 20 | . 28 28 13 Leg 7 | . . . 14 Device 6 | . . . 12 Storage 14 | . 14 14 14 Energy Gun 23 | . 28 28 19 Ballistic Gun 2 | . . . 4 Ballistic Cannon 1 | . . . 3 Peak Build Rating 10 | 6 6 6 10 Average Rating 7 | 3 6 5 9 On Entrance 4 | . 6 6 6 Naked Turns . | . . . . Heaviest Build 20 | 12 12 14 20 Greatest Support 40 | 40 40 40 40 Greatest Overweight (x) . | . . . . Average Overweight (x) . | . . . . Largest Inventory Capacity 8 | 8 8 8 8 Average Capacity 7 | 7 8 8 8 Most Carried 8 | 4 4 6 8 Average Carried 4 | 1 3 4 5 Final Capacity 8 | 8 8 8 8 Final Carried 6 | 2 4 6 6 Class Distribution -------------------- 100% | Mutant Dominant Class ---------------- Mutant | -10/Materials Mutant | -10/Mines Mutant | -10/Subcaves Resources | -11 -10 -10 -10 ----------- Run | Yrd Mat Min Sub Matter Collected 395 | 257 3 10 125 Remotely . | . . . . Salvage Created 532 | . 38 138 356 Parts 29 | . 3 4 22 Haulers Intercepted . | . . . . Recyclers Shooed . | . . . . Parts Field Recycled . | . . . . Retrieved Matter . | . . . . Parts Self-Destructed 12 | . . . 12 Prevented . | . . . . Kills | -11 -10 -10 -10 ------- Run | Yrd Mat Min Sub Combat Hostiles Destroyed 18 | . 3 5 10 Guns 16 | . 3 5 8 Cannons 2 | . . . 2 Classes Destroyed 3 | . 1 1 1 Swarmer 8 | . 3 3 2 Grunt 2 | . . 2 . Subdweller 8 | . . . 8 Best Kill Streak 3 | . 3 2 3 Combat Bots Only 3 | . 3 2 3 Max Kills in Single Turn 1 | . 1 1 1 Gunslinging . | . . . . Exploded . | . . . . Melee . | . . . . Uniques/NPCs Destroyed . | . . . . Combat | -11 -10 -10 -10 -------- Run | Yrd Mat Min Sub Hostile Shots Fired 90 | . 17 34 39 Missed 16 | . 3 6 7 Damage Taken 1096 | . 113 287 696 Core 262 | . 22 58 182 Absorbed by Shields . | . . . . Core Remaining (%) 100 | 100 . . . Volleys Fired 59 | . 9 18 32 Largest 2 | . 2 2 2 Hottest 100 | . 100 100 100 Shots Fired 117 | . 18 36 63 Gun 114 | . 18 36 60 Cannon 3 | . . . 3 Launcher . | . . . . Special . | . . . . Kinetic 19 | . . . 19 Thermal 98 | . 18 36 44 Explosive . | . . . . Electromagnetic . | . . . . Robot Hit Streak 14 | . 3 5 14 Robot Miss Streak 3 | . 3 2 3 Penetration Max . | . . . . Secondary Targets 2 | . 1 1 . Max Gunslinging Chain 1 | . 1 1 . Shots Hit Robots 76 | . 8 22 46 Core Hits 30 | . 3 8 19 Critical Kills . | . . . . Critical Parts Destroyed . | . . . . Critical Strikes 4 | . 1 1 2 Burn 2 | . 1 1 . Destroy 1 | . . . 1 Blast 1 | . . . 1 Melee Attacks . | . . . . Impact . | . . . . Slashing . | . . . . Piercing . | . . . . Sneak Attacks . | . . . . Combat Hostiles . | . . . . Follow-up Attacks . | . . . . Damage Inflicted 1187 | . 100 292 795 Guns 1116 | . 100 292 724 Cannons 71 | . . . 71 Explosions . | . . . . Melee . | . . . . Ramming . | . . . . Kinetic 275 | . . . 275 Thermal 912 | . 100 292 520 Explosive . | . . . . Electromagnetic . | . . . . Impact . | . . . . Slashing . | . . . . Piercing . | . . . . Highest Corruption . | . . . . Average Corruption . | . . . . Corruption Purged . | . . . . Corruption Blocked . | . . . . Overload Shots . | . . . . Overflow Damage 4 | . . . 4 Projectiles 4 | . . . 4 Explosions . | . . . . Melee . | . . . . Knockbacks . | . . . . Impact . | . . . . Kinetic . | . . . . Secondary . | . . . . Self-Inflicted Damage . | . . . . Shots . | . . . . Rammed . | . . . . Targets Rammed . | . . . . Kicked . | . . . . Crushed . | . . . . Highest Temperature 292 | . 234 292 284 Average Temperature 127 | . 99 157 94 Received Heat Transfer 816 | . . 90 726 Siege Activations . | . . . . Robots Corrupted . | . . . . Combat Hostiles . | . . . . Parts Fried . | . . . . Impact Corruptions . | . . . . Robots Melted . | . . . . Combat Hostiles . | . . . . Parts Melted 5 | . . 3 2 Heat Transferred 2094 | . 370 925 799 Parts Sabotaged . | . . . . Parts Stolen . | . . . . Parts Stripped . | . . . . Power Chain Reactions . | . . . . Alert | -11 -10 -10 -10 ------- Run | Yrd Mat Min Sub Peak Influence 157 | . 122 157 . Initial 47 | . . 47 . Average 95 | . 76 126 . Maximum Alert Level . | . . . . Low Security (%) 100 | 100 100 100 . Level 1 . | . . . . Level 2 . | . . . . Level 3 . | . . . . Level 4 . | . . . . Level 5 . | . . . . High Security . | . . . . Max Security . | . . . . Squads Dispatched . | . . . . Investigation . | . . . . Extermination . | . . . . Reinforcement . | . . . . Assault . | . . . . Garrison . | . . . . Intercept . | . . . . Searches Triggered . | . . . . Construction Impeded . | . . . . Haulers Reinforced . | . . . . Active Scanning Responses . | . . . . Cargo Convoy Interrupts . | . . . . Stealth | -11 -10 -10 -10 --------- Run | Yrd Mat Min Sub Distress Signals . | . . . . Communications Jammed . | . . . . Distress Signals . | . . . . Times Spotted 21 | . 5 5 11 Peak Tracking Total 4 | . 4 3 2 Tactical Retreats 1 | . 1 . . Traps | -11 -10 -10 -10 ------- Run | Yrd Mat Min Sub Traps Triggered . | . . . . Indirectly . | . . . . Trap Hack Attempts . | . . . . Triggered . | . . . . Disarmed . | . . . . Reprogrammed . | . . . . Reused . | . . . . Traps Extracted . | . . . . Installed . | . . . . Triggered . | . . . . Machines | -11 -10 -10 -10 ---------- Run | Yrd Mat Min Sub Machines Disabled . | . . . . Max in Single Turn . | . . . . Machines Repaired . | . . . . Machines Dismantled . | . . . . Machines Sabotaged . | . . . . Overloaded Fab Kills . | . . . . Hacking | -11 -10 -10 -10 --------- Run | Yrd Mat Min Sub Machines Accessed 1 | . 1 . . Terminals 1 | . 1 . . Fabricators . | . . . . Repair Stations . | . . . . Recycling Units . | . . . . Scanalyzers . | . . . . Garrison Access . | . . . . Total Hacks 3 | . 3 . . Successful 2 | . 2 . . Failed . | . . . . Catastrophic . | . . . . Database Lockouts 1 | . 1 . . Manual 3 | . 3 . . Terminals 3 | . 3 . . Fabricators . | . . . . Repair Stations . | . . . . Recycling Units . | . . . . Scanalyzers . | . . . . Garrison Access . | . . . . Terminal Hacks 2 | . 2 . . Robot Analysis 1 | . 1 . . Branch Access Points 1 | . 1 . . Fabricator Hacks . | . . . . Repair Station Hacks . | . . . . Recycling Unit Hacks . | . . . . Scanalyzer . | . . . . Garrison Access Hacks . | . . . . Unauthorized Hacks . | . . . . Terminals . | . . . . Fabricators . | . . . . Repair Stations . | . . . . Recycling Units . | . . . . Scanalyzers . | . . . . Garrison Access . | . . . . Data Cores Recovered . | . . . . Used . | . . . . Hacking Detections 1 | . 1 . . Full Trace Events . | . . . . Feedback Events . | . . . . Feedback Blocked . | . . . . Robot Schematics Acquired . | . . . . Robots Built . | . . . . Authchips . | . . . . Time . | . . . . Total Robot Build Rating . | . . . . Part Schematics Acquired . | . . . . Parts Built . | . . . . Authchips . | . . . . Time . | . . . . Total Part Build Rating . | . . . . Parts Repaired . | . . . . Time . | . . . . Parts Recycled . | . . . . Recycled Matter . | . . . . Retrieved Matter . | . . . . Retrieved Components . | . . . . Parts Scanalyzed . | . . . . Part Schematics Acquired . | . . . . Parts Damaged . | . . . . Bothacking | -11 -10 -10 -10 ------------ Run | Yrd Mat Min Sub Used RIF Installer . | . . . . Robots Hacked . | . . . . Non-combat . | . . . . Combat . | . . . . Robot Hacks Applied . | . . . . Relay Couplers Released . | . . . . Fabnet Peak Effective % . | . . . . Robots Rewired . | . . . . Allies Hacked . | . . . . Hacks Repelled . | . . . . Allies | -11 -10 -10 -10 -------- Run | Yrd Mat Min Sub Total Allies . | . . . . Largest Group . | . . . . Highest-Rated Group . | . . . . Highest-Rated Ally . | . . . . Total Orders . | . . . . Ally Attacks . | . . . . Total Damage . | . . . . Kills . | . . . . Allies Corrupted . | . . . . Allies Melted . | . . . . Intel | -11 -10 -10 -10 ------- Run | Yrd Mat Min Sub Robot Analysis Total 1 | . 1 . . Derelict Logs Recovered . | . . . . Drone Launches . | . . . . Drone Recoveries . | . . . . Exploration | -11 -10 -10 -10 ------------- Run | Yrd Mat Min Sub Turns Passed 1400 | 92 213 414 681 Spaces Moved 627 | 59 114 61 393 Core 14 | 14 . . . Treads 389 | 45 114 61 169 Legs 224 | . . . 224 Wheels . | . . . . Hover . | . . . . Flight . | . . . . Fastest Speed 50 | 50 160 160 120 Average Speed 143 | 133 160 160 137 Slowest Speed 160 | 160 160 160 160 Overloaded Moves . | . . . . Propulsion Burnouts . | . . . . Robots Hopped . | . . . . Cave-ins Triggered . | . . . . Exploration Rate (%) 16 | 4 17 14 31 Regions Visited 3 Branch Regions 2 Pre-discovered Areas . | . . . . Known Exits Taken 1 | . 1 . . Unknown Exits Taken 2 | 1 . 1 . Scrap Searched 1 | . . . 1 Spaces Dug . | . . . . Terrain Destroyed . | . . . . Melee . | . . . . Projectile . | . . . . AOE . | . . . . Terrain Rammed . | . . . . Walls Destroyed . | . . . . Machines Disabled . | . . . . Actions | -11 -10 -10 -10 --------- Run | Yrd Mat Min Sub Total 1011 | 72 127 342 470 Wait 292 | . 3 260 29 Move 624 | 58 113 60 393 Hop . | . . . . Pick Up 18 | 8 2 3 5 Fast Attach 2 | . . . 2 Attach 12 | 6 . 1 5 Detach . | . . . . Swap 3 | . . . 3 Drop 1 | . . . 1 Fire 59 | . 9 18 32 Melee . | . . . . Ram . | . . . . Kick . | . . . . Crush . | . . . . Escape Stasis . | . . . . Rewire . | . . . . Trap . | . . . . Miscellaneous . | . . . . Route ------- -11/Scrapyard -10/Materials (discovered 2 exits: *Min x2) -10/Mines -10/Subcaves (discovered 2 exits: [*Mat x2]) History --------- Turn | Location | Event 10 | -11/Scrapyard | Discovered new exit (range 16) 93 | -11/Scrapyard | Entered Materials 101 | -10/Materials | Discovered new exit (range 6) 119 | -10/Materials | Central database locked down 119 | -10/Materials | Identified exit to Mines 303 | -10/Materials | Build established: Mutant 306 | -10/Materials | Entered Mines 716 | -10/Mines | Discovered new exit (range 4) 720 | -10/Mines | Entered Subcaves 767 | -10/Subcaves | Disturbed a concealed Subdweller 1053 | -10/Subcaves | Core integrity fell below 50% 1079 | -10/Subcaves | Lost 3 parts (2n1w) 1249 | -10/Subcaves | Discovered new exit (range 10) 1265 | -10/Subcaves | Shifting Twisted Machinery released Flamer 1380 | -10/Subcaves | Discovered new exit (range 6) 1393 | -10/Subcaves | Core integrity fell below 20% 1401 | -10/Subcaves | Destroyed by 4O-BRT(R) with Subdweller Laser Last Messages --------------- 01237_ Acquired Sub. Optics. 01243_ Acquired 10 matter. 01249_ EXIT=FOUND 01253_ S-10 Pest destroyed. 01257_ Lgt. Assault Rifle fries itself beyond repair. 01258_ Lgt. Ion Engine fries itself beyond repair. Flamer falls loose from the Twisted Machinery. 01337_ HU-F55(R) destroyed. 01342_ Acquired Sub. Laser. 01349_ Disposable Heat Sink melted. 01349_ 5D-CE1(R) destroyed. 01353_ Acquired 16 matter. 01357_ Acquired 2 matter. 01380_ EXIT=FOUND 01389_ Sub. Machine Gun shoots sparks and powers down. 01396_ EK-S5J(R) suffers critical hit (Destroy). 01396_ EK-S5J(R) destroyed. Map ----- +----------------------------------------------------+ | ## ## % ##???????????????????????????????????? | | ?# =="%##???????????????????????????????????? | | ?# # !""" #???????????????????????????????????? | | ## ####"""%"#???????????????????????????????????? | | # ##" ###???????????????????????????????????? | | <% #?????????????????????????????????????? | | #### ##?????????????????????????????????????? | | #????# ##?????????????????????????????????????? | | #????## #?????????????????????????????????????? | | ####??# ##????????????????????????????????????? | | ## ##?# ##???????????????????????????????????? | | " #?# #???????????????????????????????????? | | ""### #???????????????????????????????????? | | "" ### #???????????????????????????????????? | | "# # #???????????????????????????????????? | | " ##???????????????????????????????????? | | ## ### ##????????????????????????????????????? | | ##### | ###????####?????????????????????????????? | | ##??#"" ####### ##?????###????????????????????? | | #??#""""""" "" ?????? ##???????????????????? | | ####""#""# """ ??????? < #####???????????????? | | "#####" " "#????????# ##?? #??????????? | | ""##????# " ##????????# # #??????????? | | # "" ####### ###?????? ???????????? | | ##""## % " ""###?#### # ???????????????? | | ## "##&&!## #" "###"@# #??????????????????? | | ""#&%######" !%* #???????????????????? | | """ "" =#" #"##""### ###R #???????????????????? | | """" """ "#?####?#####???????????????????? | | " "###"""# ##??????????????????????????????? | | ###?########???????????????????????????????? | | ##??????????????????????????????????????????? | | ##???????????????????????????????????????????? | | ##????????????????????????????????????????????? | | ####?????????????????????????????????????????????? | | ?????????????????????????????????????????????????? | | ?????????????????????????????????????????????????? | | ?????????????????????????????????????????????????? | | ?????????????????????????????????????????????????? | | ?????????????????????????????????????????????????? | | ?????????????????????????????????????????????????? | | ?????????????????????????????????????????????????? | | ?????????????????????????????????????????????????? | | ?????????????????????????????????????????????????? | | ?????????????????????????????????????????????????? | | ?????????????????????????????????????????????????? | | ?????????????????????????????????????????????????? | | ?????????????????????????????????????????????????? | | ?????????????????????????????????????????????????? | | ?????????????????????????????????????????????????? | +----------------------------------------------------+ Best States ------------- Heat Dissipation 25 Energy Generation 10 Energy Capacity 250 Matter Stores 300 Matter Capacity 300 Sight Range 21 Terrain Scan Density 10 Evasion (%) 55 Recoil Reduction 2 Item Schematics ----------------- None Robot Schematics ------------------ None Fabricated ------------ Nothing Alien Tech Used ----------------- None Achievements -------------- None Challenges ------------ None Game ------ Seed MassControlRipteeth Manual? 0 Play Time 00:07:07 Cumulative 892.5 hours Start 2024.09.12 @ 20:09:21 End 2024.09.12 @ 20:14:00 Sessions 1 Manual Loads 0 Difficulty Rogue Special Mode None Game No. 556 Rogue 549 Adventurer 0 Explorer 7 Win Type - Total 61 Types 22/6/21/2/0/1/6/1/2 Lore% 81 Gallery% 94 Achievement% 85 Wizard Run 0 Options --------- Layout 2 ASCII 0 Keyboard 0 Movement Numpad Keybinds 0 Fullscreen 1 Font 24/Smallcaps Map View 50x44 Zoom Use 0% Tactical HUD 1 Map Filters NONE Filters NONE Steam 1 RUN: 5cd82ddf-c05c-456b-a24e-ce47b8ce222c